bitfinex/quotes_SOLUSD_20251030
["timestamp","ask_amount","ask_price","bid_price","bid_amount"]
[1761837749615,0.66,186.33,186.29,8.3674511]
[1761837749790,0.66,186.33,186.28,11.2]
[1761837750103,0.66,186.33,186.28,19.5674511]
[1761837750680,0.66,186.33,186.29,8.3674511]
[1761837751200,0.66,186.33,186.3,11.2]
[1761837751979,0.66,186.33,186.26,28.9594511]
[1761837752189,0.66,186.33,186.28,8.3674511]
[1761837752394,0.66,186.33,186.3,8.3674511]
[1761837752604,0.66,186.33,186.31,11.2]
[1761837753404,34.00476364,186.39,186.31,11.2]
[1761837753702,0.66,186.4,186.35,8.3674511]
[1761837753921,0.66,186.4,186.37,8.3674511]
[1761837754099,0.66,186.41,186.38,19.5674511]
[1761837754276,8.3674511,186.44,186.39,19.5674511]
[1761837754481,8.3674511,186.44,186.4,11.2]
[1761837754482,0.66,186.44,186.4,11.2]
[1761837754807,0.66,186.43,186.4,19.5674511]
[1761837755119,0.66,186.44,186.41,8.3674511]
[1761837755276,0.66,186.44,186.4,5.48926852]
[1761837755484,0.66,186.44,186.41,11.2]
[1761837756930,0.2,186.45,186.42,11.2]
[1761837757122,0.86,186.45,186.42,11.2]
[1761837757831,0.86,186.45,186.43,5.48926852]
[1761837757832,0.2,186.45,186.43,5.48926852]
[1761837758125,0.2,186.45,186.44,5.48926852]
[1761837761593,0.2,186.45,186.44,10.85292438]
[1761837761811,0.2,186.45,186.44,72.45292438]
[1761837762699,0.2,186.45,186.44,20.98175207]
[1761837762921,0.2,186.46,186.44,126.47102059]
[1761837763099,0.2,186.46,186.45,22.49853704]
[1761837763428,0.2,186.46,186.45,11.31853704]
[1761837763623,0.2,186.46,186.45,32.28736473]
[1761837764900,0.2,186.46,186.45,37.65073292]
[1761837765100,0.2,186.46,186.45,9.78882769]
[1761837765304,0.2,186.46,186.45,31.8214644]
[1761837765498,0.2,186.46,186.45,26.08126852]
[1761837765808,0.2,186.46,186.45,11.18]
[1761837766710,0.2,186.46,186.45,16.66926852]
[1761837766911,0.2,186.46,186.45,5.48926852]
[1761837767423,0.88,186.46,186.44,26.08126852]
[1761837767609,0.88,186.46,186.44,20.592]
[1761837767818,0.68,186.45,186.44,20.592]
[1761837768125,0.88,186.46,186.44,31.772]
[1761837770145,0.88,186.46,186.44,20.592]
[1761837770316,6.16926852,186.45,186.41,61.6]
[1761837770516,6.16926852,186.45,186.42,11.18]
[1761837770716,0.68,186.44,186.42,11.18]
[1761837773366,6.16926852,186.44,186.39,93.8]
[1761837773671,5.48926852,186.42,186.4,11.18]
[1761837774151,0.68,186.41,186.4,11.18]
[1761837774552,13.60778712,186.46,186.4,16.66926852]
[1761837774553,0.88,186.46,186.4,16.66926852]
[1761837774727,0.68,186.45,186.41,5.48926852]
[1761837774931,0.68,186.45,186.42,11.18]
[1761837775126,6.04337009,186.45,186.42,11.18]
[1761837775458,5.48926852,186.44,186.43,11.18]
[1761837775757,6.16926852,186.44,186.43,11.18]
[1761837775965,0.68,186.44,186.43,11.18]
[1761837776336,0.68,186.44,186.39,58.28126852]
[1761837776536,6.16926852,186.44,186.4,11.18]
[1761837776733,5.48926852,186.42,186.41,11.18]
[1761837777234,0.68,186.42,186.41,11.18]
[1761837779373,0.68,186.42,186.41,9.74]
[1761837779573,45.53607808,186.42,186.29,0.65]
[1761837779735,5.48926852,186.35,186.3,11.18]
[1761837780131,5.48926852,186.36,186.31,0.65]
[1761837780347,18.77480956,186.42,186.34,5.48926852]
[1761837780555,10.85349982,186.42,186.37,5.48926852]
[1761837780741,0.58,186.42,186.38,11.18]
[1761837780946,18.89911045,186.44,186.38,17.31926852]
[1761837781153,5.48926852,186.44,186.39,5.48926852]
[1761837781350,5.36369552,186.44,186.4,5.48926852]
[1761837781546,5.48926852,186.44,186.41,11.18]
[1761837781744,5.48926852,186.44,186.42,11.18]
[1761837781951,19.35204169,186.45,186.43,11.18]
[1761837782355,5.36362121,186.45,186.43,11.18]
[1761837782655,5.68926852,186.46,186.43,11.18]
[1761837782656,0.2,186.46,186.43,17.31926852]
[1761837782854,0.2,186.46,186.45,5.48926852]
[1761837783067,0.2,186.46,186.45,6.13926852]
[1761837784955,0.2,186.46,186.45,67.73926852]
[1761837785157,0.2,186.46,186.45,132.8914644]
[1761837785682,0.2,186.56,186.47,50.0]
[1761837785842,0.2,186.56,186.53,5.48926852]
[1761837786168,0.2,186.56,186.54,11.18]
[1761837786538,5.56021443,186.56,186.54,11.18]
[1761837786744,6.06926852,186.55,186.46,61.4]
[1761837786946,18.960729,186.56,186.48,5.48926852]
[1761837787144,0.2,186.56,186.52,5.48926852]
[1761837787357,0.2,186.56,186.53,17.31926852]
[1761837787759,0.2,186.56,186.53,16.66926852]
[1761837787955,0.2,186.56,186.54,5.48926852]
[1761837788156,0.2,186.56,186.55,5.48926852]
[1761837788555,0.2,186.56,186.54,6.13926852]
[1761837789063,0.2,186.56,186.55,6.13926852]
[1761837789578,0.2,186.56,186.55,0.65]
[1761837789757,0.2,186.56,186.55,6.13926852]
[1761837789942,0.2,186.56,186.55,0.65]
[1761837790382,0.2,186.56,186.55,11.18]
[1761837790540,0.2,186.56,186.54,61.4]
[1761837790851,11.0496021,186.56,186.55,11.18]
[1761837791172,0.2,186.56,186.55,72.58]
[1761837791677,5.56020583,186.56,186.55,72.58]
[1761837792189,5.56020583,186.56,186.55,61.4]
[1761837792379,11.04947435,186.56,186.55,72.58]
[1761837792544,5.56020583,186.56,186.55,72.58]
[1761837792954,25.02998892,186.56,186.49,61.4]
[1761837793153,5.48926852,186.53,186.5,11.18]
[1761837793356,5.48926852,186.54,186.5,11.83]
[1761837793571,5.36078052,186.54,186.51,0.65]
[1761837794102,0.2,186.56,186.53,5.48926852]
[1761837794273,0.2,186.56,186.54,11.18]
[1761837794468,5.5602138,186.56,186.54,11.18]
[1761837794661,5.68926852,186.56,186.54,11.18]
[1761837794888,5.68926852,186.56,186.55,11.18]
[1761837795283,11.04961613,186.56,186.55,11.18]
[1761837796293,0.2,186.56,186.55,11.87]
[1761837796687,0.2,186.56,186.55,17.35926852]
[1761837796989,0.2,186.56,186.55,78.75926852]
[1761837797869,0.2,186.56,186.55,84.11976168]
[1761837798082,0.2,186.58,186.56,61.2]
[1761837798294,0.2,186.58,186.56,67.37926852]
[1761837798875,0.2,186.58,186.57,11.18]
[1761837800194,11.04889977,186.58,186.56,61.2]
[1761837800386,11.04889977,186.58,186.57,11.18]
[1761837800996,11.04889977,186.58,186.56,61.2]
[1761837801194,5.48926852,186.57,186.56,61.2]
[1761837801496,0.2,186.58,186.57,0.69]
[1761837802394,0.2,186.58,186.57,61.89]
[1761837802971,0.2,186.58,186.57,67.37926852]
[1761837803784,5.55843381,186.63,186.59,61.0]
[1761837804001,5.55843381,186.63,186.6,11.18]
[1761837804175,5.55843381,186.63,186.6,11.87]
[1761837804496,0.2,186.63,186.61,6.17926852]
[1761837804725,0.2,186.63,186.62,17.35926852]
[1761837804900,0.2,186.64,186.62,88.14809621]
[1761837805220,0.2,186.69,186.64,50.0]
[1761837805378,0.2,186.69,186.68,5.48926852]
[1761837805572,0.2,186.69,186.68,16.66926852]
[1761837805773,0.2,186.69,186.68,132.50485644]
[1761837806198,0.2,186.69,186.68,71.65882769]
[1761837806391,0.2,186.69,186.68,65.96809621]
[1761837806591,0.2,186.69,186.68,60.47882769]
[1761837806797,0.2,186.69,186.68,27.14809621]
[1761837807407,0.2,186.69,186.68,132.50485644]
[1761837807990,0.2,186.74,186.71,9.78882769]
[1761837808191,0.2,186.74,186.73,5.48926852]
[1761837808507,0.2,186.74,186.73,15.96809621]
[1761837808997,0.2,186.74,186.73,16.50362879]
[1761837810206,0.2,186.74,186.73,33.03895466]
[1761837810935,0.2,186.77,186.76,109.78882769]
[1761837811205,0.2,186.82,186.8,130.38082769]
[1761837811378,0.2,186.82,186.8,147.74009621]
[1761837811574,0.2,186.86,186.84,100.0]
[1761837811809,0.2,186.86,186.85,26.43809621]
[1761837812101,0.2,186.86,186.85,32.47998275]
[1761837812307,0.2,186.88,186.87,130.38082769]
[1761837812525,0.2,186.88,186.87,153.20936473]
[1761837812809,5.34816557,186.98,186.92,9.78882769]
[1761837813111,5.34816557,186.98,186.94,5.48926852]
[1761837813403,18.71857951,186.98,186.95,11.16]
[1761837813597,19.40857951,186.98,186.95,11.16]
[1761837813907,18.90857951,186.98,186.95,11.16]
[1761837814200,0.69,186.97,186.95,11.16]
[1761837814582,0.69,186.97,186.96,11.16]
[1761837814782,0.69,186.97,186.93,5.48926852]
[1761837815101,0.69,186.97,186.94,11.16]
[1761837815288,6.03845162,186.97,186.95,11.16]
[1761837815795,0.69,186.96,186.95,11.16]
[1761837816001,6.03873769,186.96,186.95,11.16]
[1761837816399,5.34873769,186.96,186.95,11.16]
[1761837818110,14.33249475,186.96,186.95,11.16]
[1761837818302,27.70433899,186.96,186.95,11.16]
[1761837818505,27.70433899,186.96,186.87,50.0]
[1761837818506,27.70433899,186.96,186.85,50.0]
[1761837818809,8.29375706,186.92,186.86,11.16]
[1761837818985,8.29375706,186.93,186.86,11.85]
[1761837819189,8.29375706,186.94,186.89,8.29375706]
[1761837819491,8.29375706,186.93,186.9,11.16]
[1761837819737,8.29375706,186.93,186.91,11.16]
[1761837819894,8.29375706,186.94,186.92,11.16]
[1761837820207,5.34930993,186.94,186.93,11.16]
[1761837820596,5.348996,186.96,186.93,11.16]
[1761837820914,6.068996,186.96,186.93,11.16]
[1761837821101,0.72,186.95,186.93,11.16]
[1761837821411,5.34816557,186.98,186.94,8.29375706]
[1761837821635,5.34816557,186.98,186.93,11.16]
[1761837821788,5.34816557,186.98,186.94,8.29375706]
[1761837822283,5.34816557,186.98,186.93,19.45375706]
[1761837822641,5.34816557,186.98,186.95,8.29375706]
[1761837822920,5.34816557,186.98,186.96,11.16]
[1761837823286,5.34816557,186.98,186.97,11.16]
[1761837824294,5.34787956,186.99,186.97,11.16]
[1761837824493,5.34787956,186.99,186.97,19.45375706]
[1761837825106,0.72,186.98,186.93,8.29375706]
[1761837825303,5.34787956,186.99,186.94,11.16]
[1761837825513,13.64163662,186.99,186.94,11.16]
[1761837825726,14.36163662,186.99,186.94,11.16]
[1761837825934,27.73133553,186.99,186.94,11.85]
[1761837826140,27.01133553,186.99,186.94,11.16]
[1761837826445,0.72,187.01,186.95,8.98375706]
[1761837826629,0.2,187.02,186.96,50.0]
[1761837826834,0.2,187.02,187.0,8.29375706]
[1761837827132,0.2,187.02,187.01,11.16]
[1761837827301,5.5470217,187.02,187.01,11.16]
[1761837827701,27.92833303,187.02,187.01,11.16]
[1761837827924,19.63457597,187.02,187.01,11.16]
[1761837828230,27.92833303,187.02,187.01,11.16]
[1761837828395,19.63457597,187.02,187.01,11.16]
[1761837828602,27.92833303,187.02,186.97,8.29375706]
[1761837828821,0.72,187.01,186.98,11.16]
[1761837829015,8.29375706,187.0,186.94,8.29375706]
[1761837829214,8.29375706,186.98,186.95,11.16]
[1761837829417,8.29375706,186.97,186.92,8.29375706]
[1761837829736,8.29375706,186.97,186.93,11.16]
[1761837829900,8.29375706,186.95,186.89,8.29375706]
[1761837830216,5.35016853,186.91,186.9,11.16]
[1761837831036,27.73934691,186.91,186.81,50.0]
[1761837831241,8.29375706,186.88,186.82,19.45375706]
[1761837831539,8.29375706,186.87,186.82,19.45375706]
[1761837831722,8.29375706,186.89,186.84,8.29375706]
[1761837832030,11.16,186.98,186.84,8.29375706]
[1761837832031,13.37305974,186.95,186.88,8.29375706]
[1761837832238,5.34916693,186.95,186.92,8.29375706]
[1761837832529,5.34916693,186.95,186.93,11.16]
[1761837832830,8.29375706,186.94,186.93,11.16]
[1761837833231,9.01375706,186.94,186.85,30.38082769]
[1761837833428,8.29375706,186.87,186.86,11.16]
[1761837833737,8.29375706,186.88,186.86,11.16]
[1761837833917,0.72,186.9,186.86,11.16]
[1761837834126,8.29375706,186.87,186.86,11.16]
[1761837834311,13.6450708,186.87,186.79,40.45375706]
[1761837834510,0.72,186.86,186.8,11.16]
[1761837834846,0.72,186.86,186.8,19.45375706]
[1761837835013,9.01375706,186.86,186.81,8.29375706]
[1761837835220,5.35131374,186.87,186.82,8.29375706]
[1761837835221,13.6450708,186.87,186.82,8.29375706]
[1761837835532,13.6450708,186.87,186.83,11.16]
[1761837835735,0.72,186.89,186.83,11.16]
[1761837835736,13.64478858,186.88,186.83,11.16]
[1761837835940,0.72,186.87,186.83,11.16]
[1761837836110,9.01375706,186.87,186.83,11.16]
[1761837836311,6.07160012,186.86,186.77,120.592]
[1761837836533,6.07160012,186.86,186.78,11.16]
[1761837836534,8.29375706,186.82,186.78,11.16]
[1761837836745,8.29375706,186.8,186.78,11.16]
[1761837837118,9.01375706,186.8,186.78,11.16]
[1761837837321,9.01375706,186.79,186.76,0.2]
[1761837837619,0.72,186.79,186.77,11.16]
[1761837837821,0.72,186.78,186.77,11.16]
[1761837838322,6.07389227,186.78,186.77,11.16]
[1761837838726,14.36764933,186.78,186.77,11.16]
[1761837839425,14.36764933,186.78,186.76,0.2]
[1761837839623,9.01375706,186.77,186.76,0.2]
[1761837840431,0.72,186.8,186.76,0.2]
[1761837840634,27.03038794,186.8,186.76,0.2]
[1761837840830,27.75038794,186.8,186.76,11.36]
[1761837841026,9.01375706,186.79,186.76,11.36]
[1761837841226,8.29375706,186.77,186.76,0.2]
[1761837841446,13.64793599,186.77,186.76,0.2]
[1761837841643,27.75338333,186.77,186.69,11.16]
[1761837841848,8.29375706,186.7,186.69,11.16]
[1761837842350,8.29375706,186.7,186.63,32.79]
[1761837842552,8.29375706,186.64,186.59,0.69]
[1761837842757,8.29375706,186.61,186.59,11.16]
[1761837843148,9.01375706,186.68,186.59,11.16]
[1761837843149,8.29375706,186.6,186.59,11.16]
[1761837843330,0.72,186.64,186.59,11.16]
[1761837843331,8.29375706,186.61,186.59,11.16]
[1761837843532,8.29375706,186.62,186.59,11.16]
[1761837843747,8.29375706,186.63,186.59,11.16]
[1761837844046,8.29375706,186.64,186.59,11.16]
[1761837844246,0.72,186.67,186.6,0.69]
[1761837844552,8.29375706,186.65,186.6,0.69]
[1761837844872,8.29375706,186.66,186.6,8.98375706]
[1761837845037,0.72,186.68,186.59,11.16]
[1761837845236,8.29375706,186.63,186.59,11.16]
[1761837845660,8.29375706,186.6,186.52,100.0]
[1761837845868,8.29375706,186.58,186.53,11.16]
[1761837846155,8.29375706,186.57,186.53,11.16]
[1761837846462,13.65153567,186.65,186.54,0.69]
[1761837846674,9.01375706,186.65,186.56,8.29375706]
[1761837846828,8.29375706,186.63,186.58,8.29375706]
[1761837847258,8.29375706,186.63,186.58,8.98375706]
[1761837847665,5.35714595,186.67,186.58,13.65322674]
[1761837847873,8.29375706,186.64,186.59,0.69]
[1761837848034,8.29375706,186.63,186.59,62.29]
[1761837848967,8.29375706,186.65,186.6,8.98375706]
[1761837849268,8.29375706,186.61,186.58,11.16]
[1761837849436,8.29375706,186.6,186.58,11.16]
[1761837849939,8.29375706,186.62,186.58,11.16]
[1761837850138,8.29375706,186.61,186.58,11.16]
[1761837850334,6.06798289,186.64,186.58,11.16]
[1761837850556,8.29375706,186.59,186.58,11.16]
[1761837850944,9.00375706,186.59,186.58,11.16]
[1761837851871,14.36310107,186.59,186.58,11.16]
[1761837852038,13.65310107,186.59,186.58,11.16]
[1761837852246,8.29375706,186.59,186.58,11.16]
[1761837853066,8.29375706,186.6,186.58,11.16]
[1761837853359,6.06848515,186.62,186.58,11.16]
[1761837853360,8.29375706,186.59,186.58,11.16]
[1761837854449,8.29375706,186.61,186.58,11.16]
[1761837854649,8.29375706,186.63,186.58,20.13375706]
[1761837854971,8.29375706,186.63,186.58,25.49338646]
[1761837855538,8.29375706,186.63,186.58,87.09338646]
[1761837856069,0.71,186.65,186.58,86.41338646]
[1761837856270,8.29375706,186.63,186.58,86.41338646]
[1761837856770,8.29375706,186.6,186.58,72.76]
[1761837857360,8.98375706,186.59,186.56,61.6]
[1761837857571,0.69,186.59,186.57,11.16]
[1761837858662,0.69,186.59,186.56,61.6]
[1761837858663,8.29375706,186.58,186.56,61.6]
[1761837858863,8.29375706,186.57,186.56,61.6]
[1761837859069,8.29375706,186.57,186.56,72.76]
[1761837859375,8.98375706,186.57,186.53,61.6]
[1761837859668,8.29375706,186.54,186.5,11.16]
[1761837859971,0.69,186.56,186.51,11.16]
[1761837860173,0.69,186.55,186.51,11.16]
[1761837860339,5.36078052,186.54,186.51,11.16]
[1761837860645,0.69,186.56,186.51,11.16]
[1761837861168,8.29375706,186.54,186.51,11.16]
[1761837861385,8.29375706,186.53,186.51,11.16]
[1761837861757,0.69,186.56,186.51,11.16]
[1761837861948,8.29375706,186.53,186.51,11.16]
[1761837862475,8.29375706,186.54,186.51,11.16]
[1761837862771,8.29375706,186.56,186.51,81.05375706]
[1761837862944,8.29375706,186.53,186.51,72.76]
[1761837863142,8.29375706,186.54,186.51,72.76]
[1761837863568,5.3595005,186.59,186.52,0.66]
[1761837863763,8.29375706,186.55,186.51,16.5216322]
[1761837863968,8.29375706,186.57,186.51,25.47538926]
[1761837864148,8.29375706,186.56,186.51,20.11375706]
[1761837864452,0.69,186.58,186.51,24.81536497]
[1761837864660,8.29375706,186.59,186.53,8.29375706]
[1761837864850,8.29375706,186.59,186.54,19.47375706]
[1761837865052,8.29375706,186.6,186.54,20.13375706]
[1761837865672,8.29375706,186.57,186.54,11.18]
[1761837865983,8.29375706,186.55,186.5,20.592]
[1761837866152,0.69,186.58,186.51,11.18]
[1761837866356,41.56082769,186.62,186.51,11.18]
[1761837866357,8.29375706,186.54,186.51,11.18]
[1761837866748,0.69,186.57,186.51,11.18]
[1761837867071,8.29375706,186.54,186.51,11.18]
[1761837868074,8.29375706,186.52,186.46,52.712]
[1761837868252,8.29375706,186.5,186.47,11.18]
[1761837868448,5.36135535,186.52,186.47,11.18]
[1761837868675,8.29375706,186.5,186.47,11.18]
[1761837868849,8.29375706,186.48,186.47,11.18]
[1761837869656,8.29375706,186.49,186.47,11.18]
[1761837870776,8.29375706,186.48,186.47,11.18]
[1761837871085,8.29375706,186.49,186.47,11.18]
[1761837871252,8.29375706,186.51,186.47,11.18]
[1761837872170,8.29375706,186.51,186.47,11.84]
[1761837872364,8.29375706,186.51,186.47,11.18]
[1761837872756,0.69,186.57,186.48,8.95375706]
[1761837872957,8.29375706,186.55,186.5,8.29375706]
[1761837873159,8.29375706,186.55,186.51,11.18]
[1761837873357,8.29375706,186.52,186.51,11.18]
[1761837873952,8.29375706,186.53,186.51,11.18]
[1761837874161,8.29375706,186.54,186.51,11.18]
[1761837874382,8.29375706,186.56,186.51,11.84]
[1761837874679,8.29375706,186.57,186.51,19.47375706]
[1761837874852,5.35993292,186.57,186.51,11.18]
[1761837875059,8.29375706,186.55,186.51,11.18]
[1761837875582,8.29375706,186.52,186.47,95.84833364]
[1761837875881,8.29375706,186.53,186.48,11.84]
[1761837876790,8.29375706,186.53,186.48,25.49621732]
[1761837876958,8.29375706,186.53,186.48,17.20246026]
[1761837877159,8.98375706,186.54,186.48,25.49621732]
[1761837877388,6.1741074,186.54,186.48,22.68656766]
[1761837877677,5.4841074,186.55,186.49,6.1441074]
[1761837877861,5.4841074,186.56,186.5,5.4841074]
[1761837878060,5.4841074,186.56,186.51,11.18]
[1761837878465,6.1741074,186.56,186.51,11.18]
[1761837878689,0.69,186.55,186.51,11.18]
[1761837878884,0.69,186.55,186.51,16.54157865]
[1761837879187,5.4841074,186.59,186.53,5.4841074]
[1761837879387,5.4841074,186.59,186.54,11.18]
[1761837879555,5.35913251,186.6,186.54,11.18]
[1761837879760,5.35913251,186.6,186.54,16.6641074]
[1761837879761,10.84323991,186.6,186.54,16.6641074]
[1761837880063,34.69881329,186.62,186.54,16.6641074]
[1761837880064,5.4841074,186.62,186.57,5.4841074]
[1761837880263,5.4841074,186.62,186.58,11.18]
[1761837880462,0.71,186.61,186.58,11.18]
[1761837880859,6.1941074,186.61,186.58,11.18]
[1761837881187,6.1941074,186.61,186.58,72.78]
[1761837881558,5.4841074,186.62,186.58,72.78]
[1761837882363,0.71,186.64,186.58,78.13961923]
[1761837882568,6.1941074,186.64,186.58,78.13961923]
[1761837882783,11.55201738,186.64,186.58,83.62372663]
[1761837883100,20.592,186.66,186.58,83.62372663]
[1761837883101,5.3573797,186.66,186.58,83.62372663]
[1761837883393,5.4841074,186.64,186.59,5.4841074]
[1761837883604,5.4841074,186.62,186.58,72.78]
[1761837884691,6.06807905,186.64,186.58,72.78]
[1761837884905,5.4841074,186.62,186.58,72.78]
[1761837885572,5.4841074,186.62,186.58,73.44]
[1761837885799,5.4841074,186.62,186.58,78.79961869]
[1761837885978,6.1941074,186.61,186.58,72.78]
[1761837886178,5.4841074,186.59,186.5,5.36193029]
[1761837886381,5.4841074,186.58,186.52,5.4841074]
[1761837886684,5.4841074,186.58,186.53,0.66]
[1761837886990,5.4841074,186.58,186.54,11.18]
[1761837888491,5.4841074,186.57,186.54,11.18]
[1761837889672,5.4841074,186.58,186.54,11.18]
[1761837890693,13.39720094,186.61,186.55,11.18]
[1761837890694,5.4841074,186.56,186.55,11.18]
[1761837891196,6.1941074,186.57,186.55,11.18]
[1761837891409,5.4841074,186.56,186.55,11.18]
[1761837892496,6.07003994,186.57,186.55,11.18]
[1761837892697,5.4841074,186.56,186.55,11.18]
[1761837896701,5.4841074,186.58,186.55,11.18]
[1761837896893,6.1941074,186.58,186.55,11.18]
[1761837897092,6.1941074,186.57,186.55,11.18]
[1761837897602,5.4841074,186.57,186.55,11.18]
[1761837897787,11.55411479,186.57,186.55,11.18]
[1761837898200,5.4841074,186.56,186.55,11.18]
[1761837898899,6.1941074,186.56,186.49,67.0841074]
[1761837899097,5.4841074,186.55,186.5,11.18]
[1761837899305,6.06958228,186.59,186.51,0.66]
[1761837899478,10.84474846,186.55,186.5,11.18]
[1761837899798,5.4841074,186.54,186.5,11.18]
[1761837900004,5.4841074,186.54,186.5,11.84]
[1761837900290,5.4841074,186.55,186.5,11.84]
[1761837900493,0.71,186.54,186.5,16.6641074]
[1761837900692,0.71,186.54,186.5,11.18]
[1761837900996,5.4841074,186.51,186.47,61.6]
[1761837901196,5.4841074,186.52,186.48,11.18]
[1761837901391,5.4841074,186.53,186.48,16.6641074]
[1761837901696,5.4841074,186.53,186.48,22.6864862]
[1761837901902,6.1941074,186.52,186.48,11.18]
[1761837902403,6.1941074,186.51,186.48,11.18]
[1761837902700,5.4841074,186.49,186.43,61.6]
[1761837902895,5.4841074,186.47,186.44,11.18]
[1761837903300,5.4841074,186.46,186.44,11.18]
[1761837903879,6.1941074,186.47,186.44,72.78]
[1761837904581,0.71,186.51,186.45,0.66]
[1761837904784,1.99999999,186.58,186.5,5.4841074]
[1761837904785,0.71,186.58,186.5,5.4841074]
[1761837905087,0.71,186.58,186.52,5.4841074]
[1761837905294,5.4841074,186.57,186.51,11.18]
[1761837905500,0.71,186.58,186.47,61.6]
[1761837905819,20.592,186.6,186.47,61.6]
[1761837905820,5.4841074,186.49,186.48,11.18]
[1761837906182,6.1941074,186.49,186.48,11.18]
[1761837907008,6.1941074,186.49,186.45,11.18]
[1761837907229,5.4841074,186.47,186.45,11.18]
[1761837907582,5.4841074,186.48,186.45,11.18]
[1761837907822,0.71,186.51,186.45,11.18]
[1761837907823,5.4841074,186.5,186.46,0.66]
[1761837908125,11.55578916,186.51,186.46,0.66]
[1761837908293,6.1941074,186.51,186.46,0.66]
[1761837908487,11.55582079,186.51,186.46,0.66]
[1761837908990,6.1941074,186.55,186.49,5.4841074]
[1761837909207,6.1941074,186.55,186.5,11.18]
[1761837909391,5.4841074,186.53,186.5,11.18]
[1761837909597,0.66,186.54,186.5,11.18]
[1761837909821,5.4841074,186.54,186.5,11.83]
[1761837909998,5.4841074,186.55,186.5,11.18]
[1761837910191,5.4841074,186.53,186.5,11.18]
[1761837910785,5.4841074,186.56,186.51,0.65]
[1761837910986,5.4841074,186.56,186.51,6.1341074]
[1761837911203,5.4841074,186.57,186.51,6.1341074]
[1761837911425,5.4841074,186.58,186.53,5.4841074]
[1761837911591,5.4841074,186.59,186.54,22.02483256]
[1761837911912,6.1441074,186.63,186.57,5.4841074]
[1761837912104,6.1441074,186.63,186.58,16.6641074]
[1761837912329,5.4841074,186.6,186.53,20.592]
[1761837912517,5.4841074,186.6,186.54,17.3141074]
[1761837912703,5.4841074,186.61,186.55,5.4841074]
[1761837912894,5.4841074,186.61,186.56,5.4841074]
[1761837913090,5.4841074,186.61,186.57,11.18]
[1761837913324,5.4841074,186.63,186.57,16.6641074]
[1761837913489,5.4841074,186.63,186.57,6.1341074]
[1761837913699,5.4841074,186.63,186.55,50.0]
[1761837913700,0.66,186.62,186.55,11.18]
[1761837913926,5.4841074,186.57,186.55,11.18]
[1761837914125,5.4841074,186.58,186.55,11.18]
[1761837914861,5.4841074,186.57,186.55,11.18]
[1761837915014,5.4841074,186.56,186.51,26.0761074]
[1761837915207,5.4841074,186.57,186.52,16.6641074]
[1761837915406,5.4841074,186.58,186.52,17.3141074]
[1761837915706,5.4841074,186.57,186.52,11.18]
[1761837916006,19.46770405,186.59,186.53,11.18]
[1761837916206,31.09082769,186.58,186.45,0.66]
[1761837916408,31.09082769,186.58,186.42,50.0]
[1761837916409,20.592,186.55,186.42,0.66]
[1761837916623,20.592,186.51,186.4,50.66]
[1761837916823,20.592,186.51,186.41,11.84]
[1761837917031,5.4841074,186.45,186.41,11.84]
[1761837917741,5.4841074,186.44,186.41,11.18]
[1761837917910,5.4841074,186.42,186.39,32.16]
[1761837918104,5.4841074,186.42,186.4,11.18]
[1761837918304,5.36250536,186.48,186.4,17.3241074]
[1761837918503,5.4841074,186.47,186.42,5.4841074]
[1761837918735,5.4841074,186.45,186.43,11.18]
[1761837919231,5.4841074,186.44,186.39,32.16]
[1761837919402,0.71,186.45,186.39,32.16]
[1761837919403,5.4841074,186.43,186.4,11.18]